{"text_format":"1","workbook":"xlsx","n_sheets":2,"sheets":["Sheet1","Sheet2"],"not_rendered":{"charts":0,"images":0,"macros":1,"external_links":0,"defined_names":3,"comments":0,"pivot_tables":0},"unopened":[],"bounds":{"document_bytes":16777216,"sheet_cells":100000,"rows_first":2000,"rows_last":500,"rows_between":2000,"halvings":0,"cell_chars":16384,"cell_head_chars":4096},"cells_cut":0,"cells_raw":0,"read":"whole","date_system":"1900"}

{"sheet":"Sheet1","index":0,"n_rows":38,"n_cols":17,"rows_kept":38,"cut":false,"hidden":false,"merged":[]}
[{"$f":"TODAY()","v":"2015-10-06"},"2012-12-30",{"$f":"UPPER(LEFT(TEXT(B1,D$1&D$1&D$1),1))","v":""},null,null,null,null,"2015-10-01",null,null,null,null,null,null,null,null,"English"]
["2015-10-06","2012-12-31",{"$f":"UPPER(LEFT(TEXT(B2,D$1&D$1&D$1),1))","v":""},null,null,null,null,"Week","Mon","Tue","Wed","Thu","Fri","Sat","Sun",null,"German"]
["2015-10-06","2013-01-01","",null,null,null,null,{"$f":"1+INT((N8-(DATE(YEAR(N8),1,2)-WEEKDAY(DATE(YEAR(N8),1,0))))/7)","v":40},{"$f":"IF((2-WEEKDAY(N8,2))<1,\"\",2-WEEKDAY(N8,2))","v":""},{"$f":"IF((3-WEEKDAY(N8,2))<1,\"\",3-WEEKDAY(N8,2))","v":""},{"$f":"IF((4-WEEKDAY(N8,2))<1,\"\",4-WEEKDAY(N8,2))","v":""},{"$f":"IF((5-WEEKDAY(N8,2))<1,\"\",5-WEEKDAY(N8,2))","v":1},{"$f":"IF((6-WEEKDAY(N8,2))<1,\"\",6-WEEKDAY(N8,2))","v":2},{"$f":"IF((7-WEEKDAY(N8,2))<1,\"\",7-WEEKDAY(N8,2))","v":3},{"$f":"IF((8-WEEKDAY(N8,2))<1,\"\",8-WEEKDAY(N8,2))","v":4},null,"Español"]
["2015-10-06","2013-01-02","",null,null,null,null,{"$f":"1+INT((N8+7-(DATE(YEAR(N8+7),1,2)-WEEKDAY(DATE(YEAR(N8+7),1,0))))/7)","v":41},{"$f":"O3+1","v":5},{"$f":"I4+1","v":6},7,8,9,10,11,null,"Français"]
["2015-10-06","2013-01-03","",null,null,null,null,{"$f":"1+INT((N8+14-(DATE(YEAR(N8+14),1,2)-WEEKDAY(DATE(YEAR(N8+14),1,0))))/7)","v":42},{"$f":"O4+1","v":12},13,14,15,16,17,18,null,"Russian"]
["2015-10-06","2013-01-04","",null,null,null,null,{"$f":"1+INT((N8+21-(DATE(YEAR(N8+21),1,2)-WEEKDAY(DATE(YEAR(N8+21),1,0))))/7)","v":43},{"$f":"O5+1","v":19},20,21,22,23,24,25,null,"Danish"]
["2015-10-06","2013-01-05","",null,null,null,null,{"$f":"IF(ISNUMBER(I7),1+INT((N8+28-(DATE(YEAR(N8+28),1,2)-WEEKDAY(DATE(YEAR(N8+28),1,0))))/7),\"\")","v":44},{"$f":"IF(ISNUMBER(O6),IF(O6+1>O8,\"\",O6+1),\"\")","v":26},{"$f":"IF(ISNUMBER(I7),IF(I7+1>O8,\"\",I7+1),\"\")","v":27},{"$f":"IF(ISNUMBER(J7),IF(J7+1>O8,\"\",J7+1),\"\")","v":28},{"$f":"IF(ISNUMBER(K7),IF(K7+1>O8,\"\",K7+1),\"\")","v":29},{"$f":"IF(ISNUMBER(L7),IF(L7+1>O8,\"\",L7+1),\"\")","v":30},{"$f":"IF(ISNUMBER(M7),IF(M7+1>O8,\"\",M7+1),\"\")","v":31},{"$f":"IF(ISNUMBER(N7),IF(N7+1>O8,\"\",N7+1),\"\")","v":""}]
["2015-10-06","2013-01-06","",null,null,null,null,{"$f":"IF(ISNUMBER(I8),1+INT((N8+35-(DATE(YEAR(N8+35),1,2)-WEEKDAY(DATE(YEAR(N8+35),1,0))))/7),\"\")","v":""},{"$f":"IF(ISNUMBER(O7),IF(O7+1>O8,\"\",O7+1),\"\")","v":""},{"$f":"IF(ISNUMBER(I8),IF(I8+1>O8,\"\",I8+1),\"\")","v":""},null,null,null,{"$f":"DATE(YEAR(H1),MONTH(H1),1)","v":42278},{"$f":"DAY(DATE(YEAR(H1),MONTH(H1)+1,0))","v":31}]
["2015-10-06"]
["2015-10-06"]
["2015-10-06",null,null,null,null,null,null,"2015-10-01"]
["2015-10-06",null,null,null,null,null,null,"Week","Sun","Mon","Tue","Wed","Thu","Fri","Sat"]
["2015-10-06",null,null,null,null,null,null,{"$f":"1+INT((N18-(DATE(YEAR(N18),1,2)-WEEKDAY(DATE(YEAR(N18),1,1))))/7)","v":40},{"$f":"IF((2-WEEKDAY(N18,1))<1,\"\",2-WEEKDAY(N18,1))","v":""},{"$f":"IF((3-WEEKDAY(N18,1))<1,\"\",3-WEEKDAY(N18,1))","v":""},{"$f":"IF((4-WEEKDAY(N18,1))<1,\"\",4-WEEKDAY(N18,1))","v":""},{"$f":"IF((5-WEEKDAY(N18,1))<1,\"\",5-WEEKDAY(N18,1))","v":""},{"$f":"IF((6-WEEKDAY(N18,1))<1,\"\",6-WEEKDAY(N18,1))","v":1},{"$f":"IF((7-WEEKDAY(N18,1))<1,\"\",7-WEEKDAY(N18,1))","v":2},{"$f":"IF((8-WEEKDAY(N18,1))<1,\"\",8-WEEKDAY(N18,1))","v":3}]
["2015-10-06",null,null,null,null,null,null,{"$f":"1+INT((N18+7-(DATE(YEAR(N18+7),1,2)-WEEKDAY(DATE(YEAR(N18+7),1,1))))/7)","v":41},{"$f":"O13+1","v":4},{"$f":"I14+1","v":5},6,7,8,9,10]
["2015-10-06",null,null,null,null,null,null,{"$f":"1+INT((N18+14-(DATE(YEAR(N18+14),1,2)-WEEKDAY(DATE(YEAR(N18+14),1,1))))/7)","v":42},{"$f":"O14+1","v":11},12,13,14,15,16,17]
["2015-10-06",null,null,null,null,null,null,{"$f":"1+INT((N18+21-(DATE(YEAR(N18+21),1,2)-WEEKDAY(DATE(YEAR(N18+21),1,1))))/7)","v":43},{"$f":"O15+1","v":18},19,20,21,22,23,24]
["2015-10-06",null,null,null,null,null,null,{"$f":"IF(ISNUMBER(I17),1+INT((N18+28-(DATE(YEAR(N18+28),1,2)-WEEKDAY(DATE(YEAR(N18+28),1,1))))/7),\"\")","v":44},{"$f":"IF(ISNUMBER(O16),IF(O16+1>O18,\"\",O16+1),\"\")","v":25},{"$f":"IF(ISNUMBER(I17),IF(I17+1>O18,\"\",I17+1),\"\")","v":26},{"$f":"IF(ISNUMBER(J17),IF(J17+1>O18,\"\",J17+1),\"\")","v":27},{"$f":"IF(ISNUMBER(K17),IF(K17+1>O18,\"\",K17+1),\"\")","v":28},{"$f":"IF(ISNUMBER(L17),IF(L17+1>O18,\"\",L17+1),\"\")","v":29},{"$f":"IF(ISNUMBER(M17),IF(M17+1>O18,\"\",M17+1),\"\")","v":30},{"$f":"IF(ISNUMBER(N17),IF(N17+1>O18,\"\",N17+1),\"\")","v":31}]
["2015-10-06",null,null,null,null,null,null,{"$f":"IF(ISNUMBER(I18),1+INT((N18+35-(DATE(YEAR(N18+35),1,2)-WEEKDAY(DATE(YEAR(N18+35),1,1))))/7),\"\")","v":""},{"$f":"IF(ISNUMBER(O17),IF(O17+1>O18,\"\",O17+1),\"\")","v":""},{"$f":"IF(ISNUMBER(I18),IF(I18+1>O18,\"\",I18+1),\"\")","v":""},null,null,null,{"$f":"DATE(YEAR(H11),MONTH(H11),1)","v":42278},{"$f":"DAY(DATE(YEAR(H11),MONTH(H11)+1,0))","v":31}]
["2015-10-06"]
["2015-10-06"]
["2015-10-06",null,null,null,null,null,null,"2015-10-01"]
["2015-10-06",null,null,null,null,null,null,"Week","Mon","Tue","Wed","Thu","Fri","Sat","Sun"]
["2015-10-06",null,null,null,null,null,null,{"$f":"INT((N28-WEEKDAY(N28,2)-DATE(YEAR(N28+4-WEEKDAY(N28,2)),1,4))/7)+2","v":40},{"$f":"IF((2-WEEKDAY(N28,2))<1,\"\",2-WEEKDAY(N28,2))","v":""},{"$f":"IF((3-WEEKDAY(N28,2))<1,\"\",3-WEEKDAY(N28,2))","v":""},{"$f":"IF((4-WEEKDAY(N28,2))<1,\"\",4-WEEKDAY(N28,2))","v":""},{"$f":"IF((5-WEEKDAY(N28,2))<1,\"\",5-WEEKDAY(N28,2))","v":1},{"$f":"IF((6-WEEKDAY(N28,2))<1,\"\",6-WEEKDAY(N28,2))","v":2},{"$f":"IF((7-WEEKDAY(N28,2))<1,\"\",7-WEEKDAY(N28,2))","v":3},{"$f":"IF((8-WEEKDAY(N28,2))<1,\"\",8-WEEKDAY(N28,2))","v":4}]
["2015-10-06",null,null,null,null,null,null,{"$f":"INT((N28+7-WEEKDAY(N28+7,2)-DATE(YEAR(N28+4+7-WEEKDAY(N28+7,2)),1,4))/7)+2","v":41},{"$f":"O23+1","v":5},{"$f":"I24+1","v":6},7,8,9,10,11]
["2015-10-06",null,null,null,null,null,null,{"$f":"INT((N28+14-WEEKDAY(N28+14,2)-DATE(YEAR(N28+4+14-WEEKDAY(N28+14,2)),1,4))/7)+2","v":42},{"$f":"O24+1","v":12},13,14,15,16,17,18]
["2015-10-06",null,null,null,null,null,null,{"$f":"INT((N28+21-WEEKDAY(N28+21,2)-DATE(YEAR(N28+4+21-WEEKDAY(N28+21,2)),1,4))/7)+2","v":43},{"$f":"O25+1","v":19},20,21,22,23,24,25]
["2015-10-06",null,null,null,null,null,null,{"$f":"IF(ISNUMBER(I27),INT((N28+28-WEEKDAY(N28+28,2)-DATE(YEAR(N28+4+28-WEEKDAY(N28+28,2)),1,4))/7)+2,\"\")","v":44},{"$f":"IF(ISNUMBER(O26),IF(O26+1>O28,\"\",O26+1),\"\")","v":26},{"$f":"IF(ISNUMBER(I27),IF(I27+1>O28,\"\",I27+1),\"\")","v":27},{"$f":"IF(ISNUMBER(J27),IF(J27+1>O28,\"\",J27+1),\"\")","v":28},{"$f":"IF(ISNUMBER(K27),IF(K27+1>O28,\"\",K27+1),\"\")","v":29},{"$f":"IF(ISNUMBER(L27),IF(L27+1>O28,\"\",L27+1),\"\")","v":30},{"$f":"IF(ISNUMBER(M27),IF(M27+1>O28,\"\",M27+1),\"\")","v":31},{"$f":"IF(ISNUMBER(N27),IF(N27+1>O28,\"\",N27+1),\"\")","v":""}]
["2015-10-06",null,null,null,null,null,null,{"$f":"IF(ISNUMBER(I28),INT((N28+35-WEEKDAY(N28+35,2)-DATE(YEAR(N28+4+35-WEEKDAY(N28+35,2)),1,4))/7)+2,\"\")","v":""},{"$f":"IF(ISNUMBER(O27),IF(O27+1>O28,\"\",O27+1),\"\")","v":""},{"$f":"IF(ISNUMBER(I28),IF(I28+1>O28,\"\",I28+1),\"\")","v":""},null,null,null,{"$f":"DATE(YEAR(H21),MONTH(H21),1)","v":42278},{"$f":"DAY(DATE(YEAR(H21),MONTH(H21)+1,0))","v":31}]
["2015-10-06"]
["2015-10-06"]
["2015-10-06"]
["2015-10-06"]
["2015-10-06"]
["2015-10-06"]
["2015-10-06"]
["2015-10-06"]
["2015-10-06"]
[42283]

{"sheet":"Sheet2","index":1,"n_rows":55,"n_cols":6,"rows_kept":55,"cut":false,"hidden":false,"merged":[]}
["English","German","Español","Français","Russian","Danish"]
["RDB Date Picker : 1.4","RDB Datumsauswahl : 1.4","RDB Date Picker : 1.4","RDB Date Picker : 1.4","RDB Date Picker : 1.4","RDB Dato Vælger : 1.4"]
["Today","Heute","Hoy","Ajourd'hui","Сегодня","I dag"]
["D","D","F","D","Д","D"]
["F","F","F","F","Ф","F"]
["D & F","D & F","F & F","D & F","Д и Ф","D & F"]
["W","W","S","S","Н","U"]
["Change Settings","Einstellungen","Mostrar configuraciones","Modifier les réglages","Изменить настройки","Skift indstillinger"]
["Hide Settings","Einstellungen ausblenden","Ocultar configuraciones","Masquer les réglages","Закрыть настройки","Skjul indstillinger"]
["Insert Live Calendar","Kalender einfügen","Insertar calendario","Insérer le calendrier","Вставить календарь","Indsæt live kalender"]
["Help","Hilfe","Ayuda","Aide","Справка","Hjælp"]
["Close","Schließen","Cerrar","Fermer","Выход","Luk"]
["Date Format to Use","Zu verwendendes Datumsformat","Formato de fecha","Format de date choisi :","Формат даты","Dato format"]
["Add Format","Format hinzufügen","Añadir formato","Ajouter le format","Добавить формат","Tilføj format"]
["Week Number System Used","Berechnungsmethode für Kalenderwochen","Sistema de número de semana","Système de numérotation des semaines :","Система расчета номера недели","Uge nummer system"]
["Other Options","Sonstige Einstellungen","Otras opciones","Autres options :","Дополнительные настройки","Andre indstillinger"]
["Sunday first day of week (Excel Weeknum function)","Sonntag als ersten Tag der Woche verwenden (Excel-Kalenderwochenfunktion)","Domingo como primer día de la semana (Función NUM.DE.SEMANA)","Semaine commence le dimanche (fonction NO.SEMAINE)","Недели - с воскресенья, НОМНЕДЕЛИ(Дата;1)","Søndag er første dag i ugen (Excel UGENR funktion)"]
["Monday first day of week (Excel Weeknum function)","Montag als ersten Tag der Woche verwenden (Excel-Kalenderwochenfunktion)","Lunes como primer día de la semana (Función NUM.DE.SEMANA)","Semaine commence le lundi (fonction NO.SEMAINE)","Неделя - с понедельника, НОМНЕДЕЛИ(Дата;2)","Mandag er første dag i ugen (Excel UGENR funktion)"]
["ISO Week numbers (Monday first day of the week)","Berechnung gemäß dem ISO-Standard","Número de semana ISO (Lunes como primer día de la semana)","Numérotation ISO des semaines (premier jour le lundi)","ГОСТ ИСО, неделя - с понед., НОМНЕДЕЛИ.ISO(Дата)","ISO Uge numre (Mandag er første dag i ugen)"]
["If there is a Date in the cell it will select that Date in the Calendar (default setting)","Falls ein Datum in der ausgewählten Zelle vorhanden ist, wird dieses Datum im Kalender ausgewählt (Standardeinstellung).","Si la celda contiene una fecha, ésta se seleccionará en el Calendario (configuración por defecto)","Si la cellule contient une date, celle-ci sera sélectionnée dans le calendrier (par défaut)","Если в ячейке дата, то задать ее в календаре (по умолчанию)","Hvis der er en dato i cellen vil den dato blive benyttet i kalenderen (standard indstilling)"]
["AutoFit Column Width (default setting)","Spaltenbreite automatisch einstellen (Standardeinstellung).","Ancho automático de columna (configuración por defecto)","Largeur automatique de la colonne (par défaut)","Автоподстройка ширины столбца (по умолчанию)","Autotilpas kolonne bredde (standard indstilling)"]
["Language","Sprache","Idioma","Langue","Язык","Sprog"]
["Confirm to insert a Live Month Calendar into your worksheet","Bitte bestätigen Sie das Einfügen eines Kalenders in Ihr Arbeitsblatt.","Deseas insertar un calendario del mes en la hoja activa ?","Confirmer l'insertion du calendrier dans la feuille","Встроить формульный календарь месяца в лист?","Bekræft indsættelse af live månedskalender i regnearket"]
["Click Yes to add the date format of the active cell to the \"Date Format to Use\" dropdown. Use this option to add a custom format to the dropdown. Note: You can save only one custom date format; each time you use this button it will replace the format stored previously. Your custom format appears at the bottom of the dropdown list. Confirm that you have selected the correct cell, and want to add the format of this cell to the dropdown.","Klicken Sie auf Ja, um das Datumsformat der ausgewählten Zelle der nebenstehenden Liste hinzufügen. Hinweis: es kann nur eine Formatangabe der Liste hinzugefügt werden. Falls Sie ein weiteres Format hinzufügen, wird der vorherige Eintrag überschrieben. Das hingefügte bzw. Ihr benutzerdefiniertes Format in der Liste entspricht dem letzten Eintrag in der Liste.","Da Click en Sí para agregar el formato de fecha definido en el la sección \"Formato de fecha\". Puedes usar esta opción para agregar tu propio formato personalizado. Nota: Sólo puedes guardar un formato personalizado y cada vez que uses esta opción, el formato anterior será reemplazado. Podrás encontrar tu formato personalizado en la lista. Estás seguro de haber elegido la celda correcta y aplicar el formato de fecha de la lista ?","Pour ajouter le format de date de la cellule active à la liste du \"Format de date choisi\", cliquer sur le bouton \"Oui\". Cela vous permet d'ajouter un format personnalisé. Note : il n'est possible de conserver qu'un format personnalisé. Chaque utilisation de ce bouton écrasera le format précédemment mémorisé. Votre format s'ajoute au bas de la liste déroulante. Confirmer que vous avez sélectionné la cellule voulue et souhaitez ajouter son format à la liste.","Чтобы добавить в выпадающий список формат даты активной ячейки нажмите [Да].\nДля отмены данного действия нажмите [Нет]. \n\nПримечание: пользовательский формат даты помещается в конец списка с удалением \nпредыдущего пользовательского формата, если он был добавлен ранее.","Klik 'Ja' for at tilføje datoformatet fra den aktive celle til brug for 'Dato Format' rullemenuen.  Benyt denne mulighed til at tilføje dit eget format til rullemenuen.  Bemærk: Man kan kun gemme et dato format.  Hver gang man trykker på denne knap vil det udskifte det datoformat man måtte have gemt tidligere.  Eget datoformat vil vise sig i bunden af rullemenuen.  Bekræft, at du har valgt den korrekte celle, og ønsker at tilføje cellens format til rullemenuen."]
["To allow date insertion in unprotected cells of a protected worksheet, you must enable \"Format Cells\" and \"Format Columns\" in the dialog that you see when you protect your worksheet.","Damit ein Datum in ungeschützten Zellen von geschützten Arbeitsblättern hinzugefügt werden kann, muss das Formatieren von Zellen und Spalten zugelassen sein. Excel stellt Ihnen entsprechende Optionen im Dialog zum Blattschutz zur Verfügung.","Si deseas insertar una fecha en una celda protegida debes elegir las opciones \"Aplicar formato a celdas\" y \"Aplicar formato a columnas\" en el cuadro de diálogo Proteger hoja, mismo que usaste cuando protegiste esta hoja.","Pour permettre l'insertion de date dans une cellule déprotégée d'une feuille protégée, vous devez autoriser \"Format de cellule\" et \"Format de colonnes\" dans le dialogue de protectio de la feuille.","Для листов с защитой необходимо в диалоге установки защиты разрешить \"Форматирование ячеек\" и \"Форматирование столбцов\" для того, чтобы вставлять дату в незащищенные ячейки листа с форматированием и автоподбором ширины столбца.","For at tillade indsættelse af datoer i ubeskyttede celler i et beskyttet regneark, skal man tillade Formater celler'' og 'Formater kolonner' i dialogboksen, når man beskytter sine regneark."]
["Select a date in the calendar and try again","Wählen Sie bitte zunächst ein Datum aus und wiederholen Sie anschließend den Vorgang.","Selecciona una fecha en el Calendario e intenta otra vez","Sélectionnez une date dans le calendrier et ré-essayez","Выберите дату в календаре и повторите еще раз","Vælg en dato i kalenderen og prøv igen"]
["Could not insert the date","Das Datum kann nicht eingefügt werden.","No se pudo insertar la fecha","Impossible d'insérer la date","Вставка даты невозможна","Kunne ikke indsætte datoen"]
["Could not apply the date format","Das Datumformat kann nicht übernommen werden.","No se pudo aplicar el formato de fecha","Impossible d'appliquer le format de date","Установка формата невозможна","Kunne ikke anvende datoformatet"]
["Could not insert the week number","Die Kalenderwoche konnte nicht eingefügt werden.","No se pudo insertar el número de semana","Impossible d'insérer le numéro de semaine","Вставка номера недели невозможна","Kunne ikke indsætte ugenummeret"]
["Can't undo.","Der Vorgang kann nicht rückgängig gemacht werden.","La acción no se puede deshacer","Impossible d'annuler","Отмена действия невозможна","Kan ikke fortryde"]
["The worksheet is protected","Das Arbeitsblatt ist geschützt.","La hoja activa está protegida","La feuille est protégée","Лист защищен","Regnearket er beskyttet"]
["Activate a worksheet","Ein Arbeitsblatt aktivieren.","Activar una hoja","Veuillez activer une feuille","Выберите лист","Aktiver et regneark"]
["Won't fit here! The calendar uses eight columns and eight rows, which would overwrite existing data","Der Kalender kann an der ausgewählten Stelle nicht eingefügt werden, da für diesen acht Zeilen und acht Spalten benötigt werden und das Einfügen bestehende Daten überschreiben würde.","El Calendario usa ocho columnas y ocho filas, y es posible que reemplace información de la hoja","Impossible ! Le calendrier s'insère sur huit colonnes et huit lignes, ce qui écraserait les données déjà existantes","Формульный календарь месяца размером 8 x 8 ячеек не может быть вставлен поверх непустых ячеек","Der er ikke plads! Kalenderen benytter otte kolonner og otte rækker, hvilket vil overskrive eksisternede data"]
["Select a different starting cell and try again","Wählen Sie bitte eine andere Startzelle aus und wiederholen Sie anschließend den Vorgang.","Selecciona una celda diferente e intenta otra vez","Choisissez une autre cellule et recommencez","Выделите другую начальную ячейку и повторите еще раз","Vælg en anden start celle og prøv igen"]
["To change the month displayed, change the date in the top row of the calendar","Um in dem Arbeitsblatt eingefügten Kalender den angezeigten Monat zu wechseln, ändern Sie das Datum in der obersten Zeile des Kalenders. ","Puedes cambiar la fecha en la parte superior del Calendario para mostrar el Calendario del mes completo","Pour changer le mois qui s'affiche, modifiez la date de la rangée supérieure du calendrier","Для отображения календаря другого месяца отредактируйте дату верхней ячейки","For at ændre den viste måned, ændres datoen i kalenderens øverste række"]
["There was a problem creating the calendar","Es ist ein Problem bei der Erstellung des Kalenders aufgetreten.","Hubo un problema de escritura al crear el calendario","Il y a eu un problème à la création du calendrier","Ошибка вставки на лист формульного календаря","Der opstod et problem i forsøget på at oprette kalenderen"]
["Week","Woche","Semana","Semaine","Неделя","Uge"]
["Ron de Bruin : The Excel WeekNum worksheet function with as argument 1 is used.","Ron de Bruin : Dieser Kalender verwendet die Excel-Kalenderwochenfunktion des Typs 1.","Ron de Bruin : Se utiliza la función NUM.DE.SEMANA como argumento 1","Ron de Bruin : La fonction NO.SEMAINE est utilisée avec l'argument 1","Ron de Bruin : Использована функция НОМНЕДЕЛИ(Дата;1)","Ron de Bruin: Excel UGENR regnearksfunktion med 1 som argument"]
["Ron de Bruin : The Excel WeekNum worksheet function with as argument 2 is used.","Ron de Bruin : Dieser Kalender verwendet die Excel-Kalenderwochenfunktion des Typs 2.","Ron de Bruin : Se utiliza la función NUM.DE.SEMANA como argumento 2","Ron de Bruin : La fonction NO.SEMAINE est utilisée avec l'argument 2","Ron de Bruin : Использована функция НОМНЕДЕЛИ(Дата;2)","Ron de Bruin: Excel UGENR regnearksfunktion med 2 som argument er benyttet"]
["Ron de Bruin : The ISO week number system is used in this Calendar.","Ron de Bruin : Dieser Kalender verwendet eine Berechnungsmethode für Kalenderwochen nach der ISO-Norm.","Ron de Bruin : El número de semana ISO es usado en este Calendario","Ce calendrier utilise le système de numérotation ISO","Ron de Bruin : Аналогично функции  Excel2013 НОМНЕДЕЛИ.ISO(Дата)","Ron de Bruin: ISO ugenummer systemet er benyttet i denne kalender"]
["Select todays Date in the Calendar","Wählt das heutige Datum im Kalender aus. ","Seleccionar la fecha actual en el Calendario","Sélectione la date du jour dans le calendrier","Задать сегодняшнюю дату в календаре","Indsæt dags dato i kalenderen"]
["Ctrl + double-click on a day to Insert the date only, using the default or existing date format.","Ein Doppelklick mit gedrückter Strg-Taste fügt nur das Datum in die Zelle ein und behält dessen Formatierung bei.","Ctrl  + doble-click en un día para insertar sólo la fecha, usando el formato por default.","Contrôle + double-clic sur un jour insère la date avec le format existant ou celui par défaut.","CTRL + Двойной клик в календаре - вставка даты, формат текущий или по умолчанию","Ctrl + dobbelt-klik på en dag for at indsætte datoen alene, med benyttelse af standard eller eksisterende dato format"]
["Apply the formatting, but don't enter the date","Übernimmt für die ausgewählte Zelle die Einstellung zur Formatierung in diesem Dialog, jedoch ohne das Datum einzufügen.","Aplicar el formato de fecha, pero no insertar la fecha","Applique le format, mais n'insère pas de date","Установить только формат, не меняя значения ячейки","Anvend formateringen, men indsæt ikke en dato"]
["Double-click on a day to Insert the date and the formatting.","Ein Doppelklick auf einen Tag des Kalenders fügt das Datum und die Formatierung in die Zelle ein.","Doble-click en un día para insertar la fecha y el formato.","Un double-clic sur un jour insère la date et le format","Двойной клик в календаре - вставка в ячейку даты и формата","Dobbelt-klik på en dag for at indsætte datoen og formateringen"]
["Shift + double-click on a day to Insert the week number.","Ein Doppelklick mit gedrückter Umschalttaste fügt die Kalenderwoche in die Zelle ein.","Shift + doble-click en un día para insertar el número de semana.","Majuscule + double-clic sur un jour insère le numéro de semaine","SHIFT + Двойной клик в календаре - вставка в ячейку номера недели","Skift + dobbelt-klik på en dag for at indsætte et uge nummer"]
["Change the settings of the DatePicker","Ermöglicht das Ändern der Einstellungen zum Add-In.","Cambiar las configuraciones de DatePicker","Modifie les réglages de DatePicker","Отобразить/скрыть панель изменения настроек","Skift indstillerne for Dato Vælgeren"]
["Insert Live month calendar in your worksheet","Fügt den Kalender in Ihr Arbeitsblatt ein.","Insertar calendario en la hoja activa","Insère un calendrier dans votre feuille","Встроить формульный календарь в ячейки листа","Indsæt en live månedskalender i dit regneark"]
["Visit the Add-ins website","Ruft die Website zum Add-In auf.","Visita la página del Add-in","Accès au site des compléments (Add-ins)","Посетить веб-сайт надстройки","Besøg tilføjelsesprogrammets hjemmeside"]
["The ESC key will also Close the DatePicker","Die Esc-Taste beendet ebenfalls den Dialog zur Datumsauswahl.","La tecla ESC también cierra el DatePicker","La touche ESC aussi permet de fermer DatePicker","Для закрытия формы можно использовать также {ESC}","ESC tasten vil også lukke Dato Vælgeren"]
["Insert :","Einfügen:","Insertar :","Insertion :","Вставить :","Indsæt:"]
["Choose Language","Sprachauswahl","Elegir idioma","Choix de la langue :","Выбрать язык","Vælg sprog"]
["Sample","Beispiel:","Ejemplo","Exemple","Пример :","Eksempel"]
["Not possible to insert a Date because there is a formula in the ActiveCell","Das Datum kann nicht eingefügt werden, da die ausgewählte Zelle eine Formel beinhaltet.","No es posible insertar una fecha debido a que existe una fórmula en la celda activa","Impossible d'insérer une date, car la cellule active contient une formule","Дата не может быть вставлена в ячейку с формулой!","Det er ikke muligt, at indsætte en dato fordi der er en formel i den aktive celle"]
["How to insert date, format and number of week","Hilfe zu den Tasten- und Mauskombinationen","Cómo insertar una fecha, formato y número de semana","Aide pour les raccourcis et la saisie","Как вставить дату, формат и номер недели","Hvordan indsættes dato, formatering og ugenummer"]
["Please use the Close button or hit ESC","Verwenden Sie bitte die Schaltfläche Schließen oder drücken Sie die ESC-Taste","Por favor usa el botón Cerrar o presiona ESC","Veuillez fermer avec le bouton ou la touche ESC","Пожалуйста, используйте кнопку [Выход] или нажмите {ESC}","Benyt enten 'Luk' knappen eller tryk på ESC tasten"]